Cogmind - Beta 16 @@@ ROGUE MODE // 2025.12.22 @ 23:09:19 Player: PE-P51 Result: Destroyed by M1-5D9(R) with Subdweller Beam Cannon Performance ------------- Evolutions (0) 0 Regions Visited (2) 400 Robots Destroyed (27) 135 Value Destroyed (655) 655 Prototype IDs (0) 0 Alien Tech Used (0) 0 Bonus (0) 0 TOTAL SCORE: 1190 Bonus ------- None Cogmind --------- Core Integrity 0/250 Matter 292/300 Energy 125/125 System Corruption 0% Temperature Cool (9) Movement Treading (240) Ox1 Location -10/Subcaves Parts ------- > --- POWER (1) -------- Light Ion Engine > --- PROPULSION (2) --- Light Treads Light Treads > --- UTILITY (2) ------ High-capacity Storage Unit Makeshift Light Armor Plating > --- WEAPON (2) ------- Subdweller Laser Subdweller Machine Gun > --- INVENTORY (20) --- Light Ion Engine Wheel Subdweller Monowheel Subdweller Monowheel Subdweller Monowheel Flight Unit Flight Unit Large Storage Unit Large Storage Unit Subdweller Optics Terrain Scan Processor Scrap Shield Salvaging Laser Subdweller Laser Subdweller Beam Cannon Light Assault Rifle Light Assault Rifle Subdweller Machine Gun Subdweller Shrapnel Launcher Peak State ------------ > --- POWER ------------ Light Ion Engine > --- PROPULSION ------- Light Treads Light Treads > --- UTILITY ---------- High-capacity Storage Unit Makeshift Light Armor Plating > --- WEAPON ----------- Subdweller Laser Subdweller Machine Gun > --- INVENTORY -------- Light Ion Engine Wheel Subdweller Monowheel Subdweller Monowheel Subdweller Monowheel Flight Unit Flight Unit Large Storage Unit Large Storage Unit Subdweller Optics Terrain Scan Processor Scrap Shield Salvaging Laser Subdweller Laser Subdweller Beam Cannon Light Assault Rifle Light Assault Rifle Subdweller Machine Gun Subdweller Shrapnel Launcher [Rating: 15] Favorites ----------- Power Ion Engine Engine Ion Engine Propulsion Light Treads Treads Light Treads Leg Aluminum Leg Utility High-capacity Storage Unit Device Improved Heat Sink Storage High-capacity Storage Unit Protection Makeshift Light Armor Plating Weapon Assault Rifle Energy Gun Small Laser Energy Cannon Subdweller Beam Cannon Ballistic Gun Assault Rifle Launcher Grenade Launcher Build | -11 -10 -10 ------- Run | Yrd Mat Sub Slots Evolved . | . . . Power . | . . . Propulsion . | . . . Utility . | . . . Weapon . | . . . Parts Attached 20 | . 12 8 Power 3 | . 2 1 Engine 3 | . 2 1 Core . | . . . Reactor . | . . . Propulsion 5 | . 4 1 Treads 3 | . 2 1 Leg 2 | . 2 . Wheel . | . . . Hover . | . . . Flight . | . . . Utility 4 | . 3 1 Device 1 | . 1 . Storage 2 | . 2 . Processor . | . . . Hackware . | . . . Protection 1 | . . 1 Artifact . | . . . Weapon 8 | . 3 5 Energy Gun 3 | . 1 2 Energy Cannon 1 | . . 1 Ballistic Gun 3 | . 1 2 Ballistic Cannon . | . . . Launcher 1 | . 1 . Special Weapon . | . . . Impact Weapon . | . . . Slashing Weapon . | . . . Piercing Weapon . | . . . Special Melee Weapon . | . . . Unidentified Prototypes . | . . . Parts Lost 5 | . 1 4 Power 2 | . 1 1 Propulsion 1 | . . 1 Utility . | . . . Weapon 2 | . . 2 Highest Loss Streak 3 | . 1 3 To Critical Strikes . | . . . Average Backups 16 | . 13 17 Power 1 | . 1 1 Propulsion 5 | . 4 5 Utility 4 | . 3 4 Weapon 5 | . 4 5 Tool/Special . | . . . Unused Backups 22 | . 4 18 Power 1 | . 1 . Propulsion 9 | . 2 7 Utility 5 | . . 5 Weapon 7 | . 1 6 Tool/Special . | . . . Average Slot Usage (%) 96 | . 91 99 Engine 12 | . 10 13 Treads 23 | . 16 27 Leg 4 | . 11 . Device 5 | . 9 2 Storage 14 | . 14 14 Protection 6 | . . 11 Energy Gun 13 | . 14 13 Energy Cannon 4 | . . 7 Ballistic Gun 8 | . 9 7 Launcher 1 | . 4 . Peak Build Rating 15 | . 11 15 Average Rating 11 | . 8 13 On Entrance 7 | 6 6 11 Avg Prop Armor Cover (%) . | . . . Naked Turns . | . . . Heaviest Build 61 | 11 51 61 Greatest Support 40 | 20 40 40 Greatest Overweight (x) 2 | . 2 2 Average Overweight (x) . | . . 1 Largest Inventory Capacity 20 | . 20 20 Average Capacity 19 | . 17 20 Most Carried 20 | . 17 20 Average Carried 16 | . 13 18 Final Capacity 20 | 8 20 20 Final Carried 20 | 6 16 20 Class Distribution -------------------- 100% | Mutant Dominant Class ---------------- Mutant | -10/Materials Mutant | -10/Subcaves Resources | -11 -10 -10 ----------- Run | Yrd Mat Sub Matter Collected 717 | 171 204 342 Remotely . | . . . Salvage Created 682 | . 397 285 Parts 53 | . 31 22 Haulers Intercepted 1 | . 1 . Recyclers Shooed . | . . . Parts Field Recycled . | . . . Retrieved Matter . | . . . Parts Self-Destructed 9 | . . 9 Prevented . | . . . Parts Restored . | . . . Kills | -11 -10 -10 ------- Run | Yrd Mat Sub Combat Hostiles Destroyed 24 | . 13 11 Guns 13 | . 10 3 Cannons 5 | . . 5 AOE 5 | . 3 2 Classes Destroyed 7 | . 5 2 Worker 1 | . 1 . Hauler 1 | . 1 . Watcher 1 | . 1 . Swarmer 11 | . 6 5 Grunt 7 | . 7 . Sentry 1 | . . 1 Subdweller 5 | . . 5 Best Kill Streak 4 | . 3 4 Combat Bots Only 4 | . 3 4 Max Kills in Single Turn 2 | . 1 2 Gunslinging . | . . . Exploded 2 | . 1 2 Melee . | . . . Uniques/NPCs Destroyed . | . . . Combat | -11 -10 -10 -------- Run | Yrd Mat Sub Hostile Shots Fired 165 | . 53 112 Missed 58 | . 18 40 Hits 107 | . 35 72 Projectile 107 | . 35 72 Critical Strikes 1 | . . 1 Damage Taken 1265 | . 480 785 Core 255 | . 118 137 Absorbed by Shields . | . . . Regen/Repaired (Parts) 124 | . 124 . Core Remaining (%) 100 | 100 . . Volleys Fired 118 | . 45 73 Largest 2 | . 2 2 Hottest 145 | . 60 145 Shots Fired 191 | . 74 117 Gun 134 | . 60 74 Cannon 41 | . . 41 Launcher 16 | . 14 2 Special . | . . . Kinetic 52 | . 31 21 Thermal 123 | . 29 94 Explosive 16 | . 14 2 Electromagnetic . | . . . Robot Hit Streak 15 | . 9 15 Robot Miss Streak 3 | . 2 3 Penetration Max . | . . . Secondary Targets . | . . . Shots Hit Robots 90 | . 43 47 Core Hits 46 | . 31 15 Critical Kills 1 | . . 1 Critical Parts Destroyed . | . . . Critical Strikes 1 | . . 1 Meltdown 1 | . . 1 Melee Attacks . | . . . Impact . | . . . Slashing . | . . . Piercing . | . . . Sneak Attacks . | . . . Combat Hostiles . | . . . Follow-up Attacks . | . . . Damage Inflicted 1849 | . 872 977 Guns 887 | . 444 443 Cannons 372 | . . 372 Explosions 567 | . 405 162 Melee . | . . . Ramming 23 | . 23 . Kinetic 453 | . 260 193 Thermal 806 | . 184 622 Explosive 567 | . 405 162 Electromagnetic . | . . . Impact . | . . . Slashing . | . . . Piercing . | . . . Highest Corruption . | . . . Average Corruption . | . . . Corruption Purged . | . . . Corruption Blocked . | . . . Overload Shots . | . . . Overflow Damage 3 | . . 3 Projectiles . | . . . Explosions 3 | . . 3 Melee . | . . . Knockbacks . | . . . Impact . | . . . Kinetic . | . . . Secondary . | . . . Self-Inflicted Damage 120 | . 96 24 Shots 7 | . 6 1 Rammed 2 | . 2 . Targets Rammed 5 | . 5 . Kicked 3 | . 3 . Crushed . | . . . Highest Temperature 295 | . 61 295 Average Temperature 49 | . 25 54 Received Heat Transfer 432 | . 171 261 Siege Activations . | . . . Martial Activations . | . . . Shielding Activations . | . . . Robots Disrupted . | . . . Combat Hostiles . | . . . Robots Corrupted . | . . . Combat Hostiles . | . . . Parts Fried . | . . . Impact Corruptions . | . . . Robots Melted 1 | . . 1 Combat Hostiles 1 | . . 1 Parts Melted 3 | . . 3 Heat Transferred 1377 | . 425 952 Parts Sabotaged . | . . . Parts Stolen . | . . . Parts Stripped . | . . . Power Chain Reactions . | . . . Alert | -11 -10 -10 ------- Run | Yrd Mat Sub Maximum Alert Level . | . . . Low Security (%) 100 | . 100 . Level 1 . | . . . Level 2 . | . . . Level 3 . | . . . Level 4 . | . . . Level 5 . | . . . High Security . | . . . Max Security . | . . . Peak Influence 128 | . 128 . Initial . | . . . Average 38 | . 38 . Influence Increases 672 | . 482 190 Destroy 0b10 Robot/C 380 | . 260 120 Destroy 0b10 Robot/NC 15 | . 15 . Destroy Leader 74 | . 64 10 Successful Hack 19 | . 19 . Select Force Hacks 30 | . 30 . Disable Machine 45 | . 45 . Destroy Structure 49 | . 49 . Lose Combat Pursuer 60 | . . 60 Influence Decreases 612 | . 366 246 Entered New Map 56 | . . 56 Time Decay 506 | . 366 140 Lost Part 40 | . . 40 Lost Ally 10 | . . 10 Squads Dispatched 3 | . 3 . Investigation 3 | . 3 . Extermination . | . . . Reinforcement . | . . . Assault . | . . . Garrison . | . . . Intercept . | . . . Searches Triggered . | . . . Construction Impeded . | . . . Haulers Reinforced . | . . . Active Scanning Responses . | . . . Cargo Convoy Interrupts . | . . . Stealth | -11 -10 -10 --------- Run | Yrd Mat Sub Distress Signals 1 | . 1 . Communications Jammed . | . . . Distress Signals . | . . . Times Spotted 36 | . 18 18 Peak Tracking Total 6 | . 3 6 Tactical Retreats 2 | . . 2 Traps | -11 -10 -10 ------- Run | Yrd Mat Sub Traps Triggered 1 | . 1 . Indirectly . | . . . Trap Hack Attempts . | . . . Triggered . | . . . Disarmed . | . . . Reprogrammed . | . . . Reused . | . . . Traps Extracted . | . . . Installed . | . . . Triggered . | . . . Machines | -11 -10 -10 ---------- Run | Yrd Mat Sub Machines Disabled 3 | . 3 . Max in Single Turn 1 | . 1 . Machines Repaired . | . . . Machines Dismantled . | . . . Machines Sabotaged . | . . . Overloaded Fab Kills . | . . . Hacking | -11 -10 -10 --------- Run | Yrd Mat Sub Machines Accessed 10 | . 9 1 Terminals 7 | . 7 . Fabricators . | . . . Repair Stations 1 | . 1 . Recycling Units 1 | . 1 . Scanalyzers . | . . . Garrison Access . | . . . Total Hacks 31 | . 26 5 Successful 25 | . 20 5 Failed 6 | . 6 . Catastrophic 1 | . 1 . Database Lockouts . | . . . Manual 12 | . 12 . Terminals 16 | . 16 . Fabricators . | . . . Repair Stations 8 | . 8 . Recycling Units 2 | . 2 . Scanalyzers . | . . . Garrison Access . | . . . Terminal Hacks 7 | . 2 5 Record 5 | . . 5 Alert Level 1 | . 1 . Zone Layout 1 | . 1 . Fabricator Hacks . | . . . Repair Station Hacks 8 | . 8 . Scan Component 4 | . 4 . Repair 4 | . 4 . Recycling Unit Hacks 1 | . 1 . Retrieve Components 1 | . 1 . Scanalyzer . | . . . Garrison Access Hacks . | . . . Unauthorized Hacks 9 | . 9 . Terminals 8 | . 8 . Assimilate 3 | . 3 . Botnet 4 | . 4 . Operators 1 | . 1 . Fabricators . | . . . Repair Stations . | . . . Recycling Units 1 | . 1 . Tunnel 1 | . 1 . Scanalyzers . | . . . Garrison Access . | . . . Data Cores Recovered . | . . . Used . | . . . Hacking Detections 5 | . 5 . Full Trace Events 1 | . 1 . Feedback Events . | . . . Feedback Blocked . | . . . Robot Schematics Acquired . | . . . Robots Built . | . . . Authchips . | . . . Time . | . . . Total Robot Build Rating . | . . . Part Schematics Acquired . | . . . Parts Built . | . . . Authchips . | . . . Time . | . . . Total Part Build Rating . | . . . Part Studies Acquired . | . . . Parts Repaired 4 | . 4 . Time 104 | . 104 . Parts Recycled . | . . . Recycled Matter . | . . . Retrieved Matter . | . . . Retrieved Components 5 | . 5 . Parts Scanalyzed . | . . . Part Schematics Acquired . | . . . Parts Damaged . | . . . Bothacking | -11 -10 -10 ------------ Run | Yrd Mat Sub Used RIF Installer . | . . . Robots Hacked . | . . . Non-combat . | . . . Combat . | . . . Robot Hacks Applied . | . . . Relay Couplers Released . | . . . Fabnet Peak Effective % . | . . . Robots Rewired . | . . . Allies Hacked . | . . . Hacks Repelled . | . . . Allies | -11 -10 -10 -------- Run | Yrd Mat Sub Total Allies 1 | . 1 . Largest Group 1 | . 1 1 Highest-Rated Group 10 | . 10 10 Highest-Rated Ally 10 | . 10 10 Total Orders . | . . . Ally Attacks . | . . . Total Damage . | . . . Kills . | . . . Allies Corrupted . | . . . Allies Melted . | . . . Intel | -11 -10 -10 ------- Run | Yrd Mat Sub Active Infowar (turns) . | . . . Robot Analysis Total . | . . . Derelict Logs Recovered . | . . . Drone Launches . | . . . Drone Recoveries . | . . . Exploration | -11 -10 -10 ------------- Run | Yrd Mat Sub Turns Passed 4286 | . 1788 2498 Spaces Moved 1635 | 1 694 940 Core . | . . . Treads 1285 | . 345 940 Legs 350 | 1 349 . Wheels . | . . . Hover . | . . . Flight . | . . . Fastest Speed 120 | 120 120 240 Average Speed 229 | 120 213 240 Slowest Speed 320 | 120 260 320 Overloaded Moves . | . . . Propulsion Burnouts . | . . . Robots Hopped . | . . . Potential Cave-ins 2 | . 2 . Cave-ins Triggered . | . . . Exploration Rate (%) 47 | 2 99 42 Regions Visited 2 Branch Regions 1 Pre-discovered Areas 1 | . 1 . Known Exits Taken . | . . . Unknown Exits Taken 2 | 1 1 . Scrap Searched 1 | . . 1 Spaces Dug 22 | . 22 . Terrain Destroyed 76 | . 66 10 Melee . | . . . Projectile 1 | . . 1 AOE 75 | . 66 9 Terrain Rammed . | . . . Walls Destroyed . | . . . Machines Disabled . | . . . Actions | -11 -10 -10 --------- Run | Yrd Mat Sub Total 1973 | . 915 1058 Wait 159 | . 140 19 Move 1633 | . 693 940 Hop . | . . . Pick Up 22 | . 12 10 Fast Attach 6 | . 5 1 Attach 3 | . . 3 Detach 1 | . 1 . Swap 17 | . 9 8 Drop 9 | . 5 4 Fire 118 | . 45 73 Melee . | . . . Ram . | . . . Kick 3 | . 3 . Crush 2 | . 2 . Escape Stasis . | . . . Rewire . | . . . Trap . | . . . Miscellaneous . | . . . Route ------- -11/Scrapyard -10/Materials (discovered 6 exits: [*Mat x3] / [*Min x2] / *Sub) -10/Subcaves (discovered 2 exits: [*Mat] / [*Scr]) History --------- Turn | Location | Event 1 | -11/Scrapyard | Discovered new exit (range 0) 1 | -11/Scrapyard | Entered Materials 2 | -10/Materials | Met a group of wandering Federalists 189 | -10/Materials | Discovered new exit (range 15) 316 | -10/Materials | Build established: Mutant 331 | -10/Materials | Discovered new exit (range 13) 621 | -10/Materials | Discovered new exit (range 11) 1353 | -10/Materials | Discovered new exit (range 3) 1524 | -10/Materials | Discovered new exit (range 7) 1605 | -10/Materials | Repaired Lgt. Treads 1632 | -10/Materials | Repaired Assault Rifle 1658 | -10/Materials | Repaired Ion Engine 1686 | -10/Materials | Repaired Lgt. Ion Engine 1737 | -10/Materials | Discovered new exit (range 11) 1789 | -10/Materials | Entered Subcaves 1789 | -10/Subcaves | Accompanied by 1 ally 1790 | -10/Subcaves | Continued accompanying wandering Federalists (5) 1790 | -10/Subcaves | Approached by a straggling Scientist 1831 | -10/Subcaves | Discovered new exit (range 15) 1865 | -10/Subcaves | Shifting Twisted Machinery released Sub. Optics 2045 | -10/Subcaves | Wandering Federalist uncovered a shortcut to Scraptown 2510 | -10/Subcaves | Disturbed a concealed Subdweller 2514 | -10/Subcaves | Core integrity fell below 50% 3182 | -10/Subcaves | Visited Clippyterm 3189 | -10/Subcaves | Learned Research machine intel 3189 | -10/Subcaves | Learned Factory garrison access intel 3221 | -10/Subcaves | Shifting Twisted Machinery released Scrap Shield 3646 | -10/Subcaves | Lost 3 parts (1p1n1w) 3982 | -10/Subcaves | Core integrity fell below 20% 4222 | -10/Subcaves | Shifting Twisted Machinery released Battle Cannon 4236 | -10/Subcaves | A swath of the cavern ceiling suddenly collapsed 4279 | -10/Subcaves | A Subdweller sparked back to life 4279 | -10/Subcaves | A Subdweller sparked back to life 4279 | -10/Subcaves | A Subdweller sparked back to life 4287 | -10/Subcaves | Destroyed by M1-5D9(R) with Subdweller Beam Cannon Last Messages --------------- 03788_ Acquired Sub. Monowheel. 03852_ Acquired 45 matter. 03915_ Subatomizers dissect the Datajack, destroying it. 03999_ 45-P0K(R) destroyed. 04005_ Acquired 25 matter. 04021_ 7Z-GXB(R) destroyed. 04027_ Acquired 2 matter. 04038_ Subatomizers dissect the Sub. Optics. 04051_ Acquired Sub. Machine Gun. 04061_ Dropped Broken Sub. Laser. 04061_ Acquired Sub. Laser. 04076_ Subatomizers dissect the Sub. Optics. Battle Cannon falls loose from the Twisted Machinery. 04236_ 6 Matter crushed. A swath of the cavern ceiling suddenly collapses. 04279_ PN-YO6(R) creaks and sparks as it begins to move. 04279_ 2H-MVU(R) creaks and sparks as it begins to move. 04279_ M1-5D9(R) creaks and sparks as it begins to move. 04284_ Critical hit (Destroy). 04285_ PN-YO6(R) destroyed. Map ----- +----------------------------------------------------+ | ?????????????????????????????????????????????????? | | ?????????????????????????????????????????????????? | | ?????????????????????????????????????????????????? | | ?????????????????????????????????????????????????? | | ?????????????????????????????????????????????????? | | ?????????????????????????????????????????????????? | | ?????????????????????????????????????????????????? | | ?????????????????????????????????????????????????? | | ?????????????????????????????????????????????????? | | ?????????????????????????????????????????????????? | | ?????????????????????????????????????????????????? | | ?????????????????????????????????????????????????? | | ?????????????????????????????????????????????????? | | ?????????????????????????????????????????????????? | | ?????????????????????????????????????????????????? | | ????????????????????????##???????????????????????? | | ???????????????????????? ????????? ?????????????? | | ???????????????????????? #??????? ??????????????? | | ????????????????????????#R ?????? ??????????????? | | ????????????????????????# #????? ?????????????? | | ???????????????????????? ##??? #??????????? | | ????????????????????????# #??? #???????????? | | ???????????????????????? #?? #????????????? | | ????????????????????????# ??# #?????????????? | | ??????????????????????### #?# # #####????????? | | ??????????????????????# @## #????????? | | ??????????????????????##RR# "" " ????????? | | ???????????????????????# ! #???????????????? | | ???????????????? ??????## & #???????????????? | | ???????????????# ??????# < "& #???????????????? | | ??????????????## ??????# < " ???????????? | | ??????????????? ?????#; <# ??????????? | | ???????????????# ##??##;##? ## ??????????? | | ??????????????##" ### ;#??? ##??????????????? | | ???????????????"" ##### ##???? #??????????????? | | ?????????????????#""#""###?????? #??????????????? | | ??????????????????#"""##????????? #??????????????? | | ??????????????????###"##??????????#?##???????????? | | ???????????????""??##""###????###### #???????????? | | ????????????""##"######""##???# #???????????? | | ????????????" # #""# #??## ##??????????? | | ??????????????]""% #"" ###??# ##???#####?? | | ?????????????? ""#"""# #????## ## ##?## ### | | ??????????????#"""" ##????## #? #?# # | | ??????????????###" #?###### ## ### # | | ????????????????#### ##### ### ## #? | | ???????????????????## ### ## ### #? | | ????????????????#" # #?# ## | | ???????????????#"" ### """# # | | ???????????????#"" " ### """ ## | +----------------------------------------------------+ Best States ------------- Heat Dissipation 39 Energy Generation 10 Energy Capacity 250 Matter Stores 300 Matter Capacity 300 Sight Range 16 Terrain Scan Density 10 Armor Coverage 100 Evasion (%) 50 Recoil Reduction 2 Item Schematics ----------------- None Robot Schematics ------------------ None Fabricated ------------ Nothing Repaired ---------- Lgt. Treads | 70% | -10/Materials Assault Rifle | 48% | -10/Materials Ion Engine | 71% | -10/Materials Lgt. Ion Engine | 67% | -10/Materials Studied --------- None Alien Tech Used ----------------- None Achievements -------------- None Challenges ------------ None Game ------ Seed MappingRegenerativeInjector Manual? 0 Play Time 00:17:05 Cumulative 224.5 hours Start 2025.12.22 @ 22:54:57 End 2025.12.22 @ 23:09:19 Sessions 1 Manual Loads 0 Difficulty Rogue Special Mode None Game No. 304 Rogue 303 Adventurer 1 Explorer 0 Win Type - Total 2 Types 1/0/0/1/0/0/0/0/0/0 Lore% 67 Gallery% 62 Achievement% 55 Wizard Run 0 Options --------- Layout 0 ASCII 0 Keyboard 0 Movement Numpad Keybinds 0 Fullscreen 1 Font 24/Smallcaps Map View 76x50 Zoom Use 0% Tactical HUD 1 Map Filters NONE Filters NONE Steam 1 RUN: 22177c9d-98e5-4017-8ce9-7d326d45e081